Cogmind - Beta 16 @@@ ROGUE MODE // 2025.11.16 @ 21:25:05 Player: tthaar Result: Destroyed by as-85942 with Assembled Rifle Performance ------------- Evolutions (0) 0 Regions Visited (2) 400 Robots Destroyed (22) 110 Value Destroyed (440) 440 Prototype IDs (2) 40 Alien Tech Used (0) 0 Bonus (0) 0 TOTAL SCORE: 990 Bonus ------- None Cogmind --------- Core Integrity 0/250 Matter 194/300 Energy 100/100 System Corruption 15% Temperature Warm (172) Movement Core (200) Ox3 Location -10/Mines Parts ------- > --- POWER (1) -------- (None) > --- PROPULSION (2) --- (None) > --- UTILITY (2) ------ Medium Storage Unit > --- WEAPON (2) ------- (None) > --- INVENTORY (10) --- Light Treads Wheel Medium Storage Unit Visual Processing Unit Sensor Array Light Armor Plating Assault Rifle Grenade Launcher Datajack Mining Laser Peak State ------------ > --- POWER ------------ Ion Engine > --- PROPULSION ------- Aluminum Leg Aluminum Leg > --- UTILITY ---------- Medium Storage Unit Targeting Computer > --- WEAPON ----------- Assault Rifle Assault Rifle > --- INVENTORY -------- Ion Engine Light Treads Light Treads Light Treads Wheel Compact Wheel Medium Storage Unit Sensor Array Assault Rifle Light Assault Rifle [Rating: 8] Favorites ----------- Power Ion Engine Engine Ion Engine Propulsion Aluminum Leg Leg Aluminum Leg Utility Medium Storage Unit Device Sensor Array Storage Medium Storage Unit Processor Targeting Computer Weapon Assault Rifle Energy Gun EM Pulse Gun Ballistic Gun Assault Rifle Launcher Grenade Launcher Special Weapon Mining Laser Build | -11 -10 -10 ------- Run | Yrd Mat Min Slots Evolved . | . . . Power . | . . . Propulsion . | . . . Utility . | . . . Weapon . | . . . Parts Attached 20 | 6 13 1 Power 2 | 1 1 . Engine 2 | 1 1 . Core . | . . . Reactor . | . . . Propulsion 5 | 2 3 . Treads . | . . . Leg 5 | 2 3 . Wheel . | . . . Hover . | . . . Flight . | . . . Utility 5 | 1 4 . Device 1 | . 1 . Storage 2 | 1 1 . Processor 2 | . 2 . Hackware . | . . . Protection . | . . . Artifact . | . . . Weapon 8 | 2 5 1 Energy Gun 1 | . 1 . Energy Cannon . | . . . Ballistic Gun 5 | 2 3 . Ballistic Cannon . | . . . Launcher 1 | . 1 . Special Weapon 1 | . . 1 Impact Weapon . | . . . Slashing Weapon . | . . . Piercing Weapon . | . . . Special Melee Weapon . | . . . Unidentified Prototypes . | . . . Parts Lost 7 | . 1 6 Power 1 | . . 1 Propulsion 2 | . . 2 Utility 1 | . . 1 Weapon 3 | . 1 2 Highest Loss Streak 6 | . 1 6 To Critical Strikes . | . . . Average Backups 8 | 3 8 9 Power . | . . . Propulsion 2 | 2 2 2 Utility 3 | . 3 4 Weapon 1 | . 1 2 Tool/Special . | . . . Unused Backups 11 | . 5 6 Power . | . . . Propulsion 5 | . 3 2 Utility 3 | . . 3 Weapon 2 | . 2 . Tool/Special 1 | . . 1 Average Slot Usage (%) 98 | . 98 93 Engine 13 | . 13 12 Leg 27 | . 27 26 Storage 14 | . 14 14 Processor 12 | . 12 10 Energy Gun 4 | . 5 . Ballistic Gun 22 | . 22 20 Peak Build Rating 8 | 6 8 8 Average Rating 7 | 4 7 7 On Entrance 4 | . 6 8 Avg Prop Armor Cover (%) . | . . . Naked Turns . | . . . Heaviest Build 21 | 13 21 19 Greatest Support 20 | 20 20 20 Greatest Overweight (x) 1 | . 1 . Average Overweight (x) . | . . . Largest Inventory Capacity 10 | 8 10 10 Average Capacity 9 | 6 9 10 Most Carried 10 | 7 10 10 Average Carried 8 | 3 8 9 Final Capacity 10 | 8 10 10 Final Carried 10 | 6 9 10 Class Distribution -------------------- 100% | Mutant Dominant Class ---------------- Mutant | -10/Materials Mutant | -10/Mines Resources | -11 -10 -10 ----------- Run | Yrd Mat Min Matter Collected 689 | 244 445 . Remotely . | . . . Salvage Created 711 | . 699 12 Parts 43 | . 43 . Haulers Intercepted 1 | . 1 . Recyclers Shooed . | . . . Parts Field Recycled . | . . . Retrieved Matter . | . . . Parts Self-Destructed . | . . . Prevented . | . . . Parts Restored . | . . . Kills | -11 -10 -10 ------- Run | Yrd Mat Min Combat Hostiles Destroyed 22 | . 17 5 Guns 18 | . 16 2 AOE 4 | . 1 3 Classes Destroyed 6 | . 5 1 Builder 1 | . 1 . Hauler 1 | . 1 . Watcher 3 | . 3 . Swarmer 9 | . 9 . Grunt 8 | . 8 . Assembled 5 | . . 5 Best Kill Streak 5 | . 5 5 Combat Bots Only 5 | . 5 5 Max Kills in Single Turn 2 | . 2 2 Gunslinging 1 | . 1 1 Exploded 2 | . 1 2 Melee . | . . . Uniques/NPCs Destroyed . | . . . Combat | -11 -10 -10 -------- Run | Yrd Mat Min Hostile Shots Fired 104 | . 51 53 Missed 25 | . 18 7 Hits 79 | . 33 46 Melee 7 | . . 7 Projectile 72 | . 33 39 Critical Strikes 1 | . . 1 Damage Taken 1061 | . 369 692 Core 257 | . 103 154 Absorbed by Shields . | . . . Core Remaining (%) 100 | 100 . . Volleys Fired 59 | . 51 8 Largest 2 | . 2 2 Hottest 60 | . 60 50 Shots Fired 108 | . 92 16 Gun 105 | . 91 14 Cannon . | . . . Launcher 3 | . 1 2 Special . | . . . Kinetic 82 | . 68 14 Thermal . | . . . Explosive 3 | . 1 2 Electromagnetic 23 | . 23 . Robot Hit Streak 11 | . 11 4 Robot Miss Streak 6 | . 3 6 Penetration Max . | . . . Secondary Targets 6 | . 5 1 Max Gunslinging Chain 1 | . 1 1 Shots Hit Robots 61 | . 55 6 Core Hits 44 | . 32 12 Critical Kills . | . . . Critical Parts Destroyed . | . . . Critical Strikes . | . . . Melee Attacks . | . . . Impact . | . . . Slashing . | . . . Piercing . | . . . Sneak Attacks . | . . . Combat Hostiles . | . . . Follow-up Attacks . | . . . Damage Inflicted 1315 | . 842 473 Guns 827 | . 740 87 Cannons . | . . . Explosions 488 | . 102 386 Melee . | . . . Ramming . | . . . Kinetic 574 | . 487 87 Thermal 97 | . 97 . Explosive 391 | . 5 386 Electromagnetic 253 | . 253 . Impact . | . . . Slashing . | . . . Piercing . | . . . Highest Corruption 15 | . 5 15 Average Corruption 4 | . 4 6 Corruption Purged . | . . . Corruption Blocked . | . . . Effects 39 | . 36 3 Message Errors 6 | . 5 1 Matter Fused 11 | . 10 1 Heat Flow Errors 5 | . 4 1 Energy Discharges 6 | . 6 . Parts Fused 1 | . 1 . Data Loss (minor) 6 | . 6 . Misfires 2 | . 2 . Weapon Failures 2 | . 2 . Overload Shots . | . . . Overflow Damage 2 | . . 2 Projectiles . | . . . Explosions 2 | . . 2 Melee . | . . . Knockbacks . | . . . Impact . | . . . Kinetic . | . . . Secondary . | . . . Self-Inflicted Damage 31 | . . 31 Shots 1 | . . 1 Rammed . | . . . Targets Rammed . | . . . Kicked . | . . . Crushed . | . . . Highest Temperature 261 | . 261 198 Average Temperature 83 | . 72 131 Received Heat Transfer 323 | . 123 200 Effects 1 | . 1 . Energy Bleed 1 | . 1 . Siege Activations . | . . . Martial Activations . | . . . Shielding Activations . | . . . Robots Disrupted . | . . . Combat Hostiles . | . . . Robots Corrupted . | . . . Combat Hostiles . | . . . Parts Fried . | . . . Impact Corruptions . | . . . Robots Melted . | . . . Combat Hostiles . | . . . Parts Melted . | . . . Heat Transferred 150 | . 150 . Parts Sabotaged . | . . . Parts Stolen . | . . . Parts Stripped . | . . . Power Chain Reactions 2 | . 2 . Alert | -11 -10 -10 ------- Run | Yrd Mat Min Maximum Alert Level . | . . . Low Security (%) 100 | 100 100 100 Level 1 . | . . . Level 2 . | . . . Level 3 . | . . . Level 4 . | . . . Level 5 . | . . . High Security . | . . . Max Security . | . . . Peak Influence 132 | . 132 10 Initial . | . . . Average 44 | . 49 . Influence Increases 528 | . 511 17 Destroy 0b10 Robot/C 340 | . 340 . Destroy 0b10 Robot/NC 25 | . 25 . Destroy Leader 68 | . 68 . Successful Hack 2 | . 2 . Disable Machine 15 | . 15 . Destroy Structure 33 | . 16 17 Lose Combat Pursuer 45 | . 45 . Influence Decreases 528 | . 511 17 Time Decay 501 | . 501 . Lost Part 27 | . 10 17 Squads Dispatched 2 | . 2 . Investigation 2 | . 2 . Extermination . | . . . Reinforcement . | . . . Assault . | . . . Garrison . | . . . Intercept . | . . . Searches Triggered . | . . . Construction Impeded . | . . . Haulers Reinforced . | . . . Active Scanning Responses . | . . . Cargo Convoy Interrupts . | . . . Stealth | -11 -10 -10 --------- Run | Yrd Mat Min Distress Signals . | . . . Communications Jammed . | . . . Distress Signals . | . . . Times Spotted 41 | . 26 15 Peak Tracking Total 13 | . 6 13 Tactical Retreats 3 | . 3 . Traps | -11 -10 -10 ------- Run | Yrd Mat Min Traps Triggered 8 | . 8 . Indirectly . | . . . Trap Hack Attempts . | . . . Triggered . | . . . Disarmed 4 | . 4 . Reprogrammed . | . . . Reused . | . . . Traps Extracted . | . . . Installed . | . . . Triggered . | . . . Machines | -11 -10 -10 ---------- Run | Yrd Mat Min Machines Disabled 1 | . 1 . Max in Single Turn 1 | . 1 . Machines Repaired . | . . . Machines Dismantled . | . . . Machines Sabotaged . | . . . Overloaded Fab Kills . | . . . Hacking | -11 -10 -10 --------- Run | Yrd Mat Min Machines Accessed 6 | . 6 . Terminals 5 | . 5 . Fabricators . | . . . Repair Stations 1 | . 1 . Recycling Units . | . . . Scanalyzers . | . . . Garrison Access . | . . . Total Hacks 21 | . 21 . Successful 10 | . 10 . Failed 11 | . 11 . Catastrophic . | . . . Database Lockouts . | . . . Manual 6 | . 6 . Terminals 19 | . 19 . Fabricators . | . . . Repair Stations 2 | . 2 . Recycling Units . | . . . Scanalyzers . | . . . Garrison Access . | . . . Terminal Hacks 10 | . 10 . Record 1 | . 1 . Robot Analysis 1 | . 1 . Prototype ID Bank 1 | . 1 . Alert Level 2 | . 2 . Locate Traps 2 | . 2 . Disarm Traps 1 | . 1 . Dispatch Records 1 | . 1 . Reinforcement Status 1 | . 1 . Fabricator Hacks . | . . . Repair Station Hacks . | . . . Recycling Unit Hacks . | . . . Scanalyzer . | . . . Garrison Access Hacks . | . . . Unauthorized Hacks . | . . . Terminals . | . . . Fabricators . | . . . Repair Stations . | . . . Recycling Units . | . . . Scanalyzers . | . . . Garrison Access . | . . . Data Cores Recovered . | . . . Used . | . . . Hacking Detections 6 | . 6 . Full Trace Events 4 | . 4 . Feedback Events . | . . . Feedback Blocked . | . . . Robot Schematics Acquired . | . . . Robots Built . | . . . Authchips . | . . . Time . | . . . Total Robot Build Rating . | . . . Part Schematics Acquired . | . . . Parts Built . | . . . Authchips . | . . . Time . | . . . Total Part Build Rating . | . . . Part Studies Acquired . | . . . Parts Repaired . | . . . Time . | . . . Parts Recycled . | . . . Recycled Matter . | . . . Retrieved Matter . | . . . Retrieved Components . | . . . Parts Scanalyzed . | . . . Part Schematics Acquired . | . . . Parts Damaged . | . . . Bothacking | -11 -10 -10 ------------ Run | Yrd Mat Min Used RIF Installer . | . . . Robots Hacked . | . . . Non-combat . | . . . Combat . | . . . Robot Hacks Applied . | . . . Relay Couplers Released . | . . . Fabnet Peak Effective % . | . . . Robots Rewired . | . . . Allies Hacked . | . . . Hacks Repelled . | . . . Allies | -11 -10 -10 -------- Run | Yrd Mat Min Total Allies 1 | . . 1 Largest Group 1 | . . 1 Highest-Rated Group 31 | . . 31 Highest-Rated Ally 31 | . . 31 Total Orders . | . . . Ally Attacks 7 | . . 7 Total Damage 42 | . . 42 Kills 2 | . . 2 Allies Corrupted . | . . . Allies Melted . | . . . Intel | -11 -10 -10 ------- Run | Yrd Mat Min Active Infowar (turns) 131 | . 131 . Sensors 131 | . 131 . Robot Analysis Total 1 | . 1 . Derelict Logs Recovered . | . . . Drone Launches . | . . . Drone Recoveries . | . . . Exploration | -11 -10 -10 ------------- Run | Yrd Mat Min Turns Passed 2002 | 138 1784 80 Spaces Moved 1466 | 104 1321 41 Core 2 | 2 . . Treads . | . . . Legs 1464 | 102 1321 41 Wheels . | . . . Hover . | . . . Flight . | . . . Fastest Speed 50 | 50 120 120 Average Speed 120 | 118 120 120 Slowest Speed 190 | 120 190 120 Overloaded Moves . | . . . Propulsion Burnouts . | . . . Robots Hopped . | . . . Potential Cave-ins . | . . . Cave-ins Triggered . | . . . Exploration Rate (%) 37 | 7 95 10 Regions Visited 2 Branch Regions 1 Pre-discovered Areas . | . . . Known Exits Taken 1 | . 1 . Unknown Exits Taken 1 | 1 . . Scrap Searched . | . . . Spaces Dug 10 | . . 10 Terrain Destroyed 33 | . 13 20 Melee . | . . . Projectile . | . . . AOE 33 | . 13 20 Terrain Rammed . | . . . Walls Destroyed . | . . . Machines Disabled . | . . . Actions | -11 -10 -10 --------- Run | Yrd Mat Min Total 1595 | 116 1425 54 Wait 9 | . 9 . Move 1464 | 103 1320 41 Hop . | . . . Pick Up 23 | 7 15 1 Fast Attach 12 | 5 7 . Attach 8 | 1 7 . Detach 1 | . 1 . Swap 9 | . 5 4 Drop 10 | . 10 . Fire 59 | . 51 8 Melee . | . . . Ram . | . . . Kick . | . . . Crush . | . . . Escape Stasis . | . . . Rewire . | . . . Trap . | . . . Miscellaneous . | . . . Route ------- -11/Scrapyard -10/Materials (discovered 6 exits: *Mat x3 / *Min x2 / [*Sub]) -10/Mines History --------- Turn | Location | Event 8 | -11/Scrapyard | Discovered new exit (range 15) 139 | -11/Scrapyard | Entered Materials 323 | -10/Materials | Discovered new exit (range 10) 340 | -10/Materials | Build established: Mutant 536 | -10/Materials | Discovered new exit (range 9) 650 | -10/Materials | Discovered new exit (range 14) 811 | -10/Materials | Discovered new exit (range 8) 1491 | -10/Materials | Discovered new exit (range 9) 1514 | -10/Materials | Identified exit to Mines 1542 | -10/Materials | Identified exit to Materials 1824 | -10/Materials | Discovered exit to Materials (range 16) 1923 | -10/Materials | Entered Mines 1929 | -10/Mines | Received a Mining Laser from a helpful Derelict 1961 | -10/Mines | Assembled infested the area 1989 | -10/Mines | System corruption reached 10% 1993 | -10/Mines | Core integrity fell below 50% 1996 | -10/Mines | Core integrity fell below 20% 2003 | -10/Mines | Destroyed by as-85942 with Assembled Rifle Last Messages --------------- 01987_ as-27780 destroyed. 01988_ Signal Interpreter destroyed. 01988_ System corrupted by crushing effect (+5). [Achievement: System Compromised] 01989_ EH-594(g) shuts down. 01990_ System corrupted: Heat flow error (+179). 01990_ EH-594(g) destroyed. 01990_ as-03451 destroyed. 01990_ Destroyed Asb. Hover Unit. 01992_ Ion Engine destroyed. 01992_ System corrupted by crushing effect (+2). 01993_ Aluminum Leg destroyed. 01995_ Knocked back. 02000_ The unstable cave ceiling collapses. 02001_ as-65710 destroyed. 02001_ Switching to secondary target: as-88321. 02001_ as-88321 destroyed. 02001_ Assault Rifle destroyed. 02002_ Aluminum Leg destroyed. 02002_ System corrupted by crushing effect (+3). Map ----- +----------------------------------------------------+ | ?????????????????????????????????????????????????? | | ?????????????????????????????????????????????????? | | ?????????????????????????????????????????????????? | | ?????????????????????????????????????????????????? | | ?????????????????????????????????????????????????? | | ?????????????????????????????????????????????????? | | ?????????????????????????????????????????????????? | | ?????????????????????????????????????????????????? | | ?????????????????????????????????????????????????? | | ?????????????????????????????????????????????????? | | ?????????????????????????????????????????????????? | | ?????????????????????????????????????????????????? | | ?????????????????????????????????????????????????? | | ???????????????????????????????? #??????????????? | | ??????????????????????????????? ???????????????? | | ??????????????????????????????? ????????????????? | | ?????????????????????????????? #????????????????? | | ?????????????????????????????? ##???????????????? | | ??????????????????????##????? ###?????????????? | | ?????????????????????## ##### ??????????????? | | ?????????????????????# # ????????????????? | | ?????????????????????? aa ?????????????????? | | ?????????????????????## %aaa ???????????????????? | | ???????????????????#### a #????????????????????? | | ??????????????????## =%%% #?????????????????????? | | ??????????????????# * a@ #?????????????????????? | | ??????????????????# a ##?????????????????????? | | ??????????????????# ####??????????????????????? | | ??????????????????## #?????????????????????????? | | ????####???????????## #?????????????????????????? | | ??### ##???????????# ##????????????????????????? | | ?## ##???####???# #????????????????????????? | | ?# ##?## ##?## #????????????????????????? | | ?# ### ### #????????????????????????? | | ?## ### #????????????????????????? | | ??####?## #????????????????????????? | | ????????#### ##????????????????????????? | | ???????????## ########?????????????????????????? | | ????????????#####????????????????????????????????? | | ?????????????????????????????????????????????????? | | ?????????????????????????????????????????????????? | | ?????????????????????????????????????????????????? | | | | | | | | | | | | | | | | | +----------------------------------------------------+ Best States ------------- Heat Dissipation 25 Energy Generation 10 Energy Capacity 250 Matter Stores 300 Matter Capacity 300 Sight Range 16 Robot Scan Range 14 Terrain Scan Density 10 Evasion (%) 55 Targeting Accuracy 5 Item Schematics ----------------- None Robot Schematics ------------------ None Fabricated ------------ Nothing Repaired ---------- Nothing Studied --------- None Alien Tech Used ----------------- None Achievements -------------- System Compromised Challenges ------------ None Game ------ Seed TeleporterNuclearKit Manual? 0 Play Time 00:30:46 Cumulative 13.5 hours Start 2025.11.16 @ 20:49:09 End 2025.11.16 @ 21:25:05 Sessions 1 Manual Loads 0 Difficulty Rogue Special Mode None Game No. 13 Rogue 13 Adventurer 0 Explorer 0 Win Type - Total 0 Types 0/0/0/0/0/0/0/0/0/0 Lore% 9 Gallery% 12 Achievement% 12 Wizard Run 0 Options --------- Layout 1 ASCII 0 Keyboard 0 Movement Mouse Keybinds 0 Fullscreen 2 Font 48/Smallcaps Map View 50x35 Zoom Use 0% Tactical HUD 1 Map Filters NONE Filters NONE Steam 1 RUN: 0119dc54-b8cf-4b5e-8f7a-64b02ac392d0